Cogmind - Beta 16.1 @@@ ROGUE MODE // 2026.04.23 @ 16:14:50 Player: Tibo Result: Destroyed by ER-79H(R) with Subdweller Machine Gun Performance ------------- Evolutions (0) 0 Regions Visited (3) 600 Robots Destroyed (30) 150 Value Destroyed (703) 703 Prototype IDs (0) 0 Alien Tech Used (0) 0 Bonus (0) 0 TOTAL SCORE: 1453 Bonus ------- None Cogmind --------- Core Integrity 0/250 Matter 250/300 Energy 125/125 System Corruption 0% Temperature Cool (0) Movement Core (350) Ox6 Location -10/Subcaves Parts ------- > --- POWER (1) -------- Light Ion Engine > --- PROPULSION (2) --- (None) > --- UTILITY (2) ------ Small Storage Unit Makeshift Light Armor Plating > --- WEAPON (2) ------- Heavy Riot Gun Grenade Launcher > --- INVENTORY (8) ---- Light Ion Engine Small Matter Pod (50) Makeshift Kinetic Plating Makeshift System Restoration Module Subdweller Beam Cannon Mining Laser Peak State ------------ > --- POWER ------------ Light Ion Engine > --- PROPULSION ------- Aluminum Leg Aluminum Leg > --- UTILITY ---------- Small Storage Unit Improved Terrain Scanner > --- WEAPON ----------- Heavy Riot Gun Heavy Battle Rifle > --- INVENTORY -------- Light Ion Engine Light Ion Engine Compact Wheel Small Matter Pod Utility Shielding Grenade Launcher Grenade Launcher Mining Laser [Rating: 15] Favorites ----------- Power Light Ion Engine Engine Light Ion Engine Propulsion Aluminum Leg Leg Aluminum Leg Wheel Compact Wheel Utility Small Storage Unit Device Improved Terrain Scanner Storage Small Storage Unit Protection Makeshift Kinetic Plating Weapon Grenade Launcher Energy Gun Heavy Riot Gun Ballistic Gun Light Assault Rifle Launcher Grenade Launcher Special Weapon Mining Laser Build | -11 -10 -10 -10 ------- Run | Yrd Mat Min Sub Slots Evolved . | . . . . Power . | . . . . Propulsion . | . . . . Utility . | . . . . Weapon . | . . . . Parts Attached 23 | 7 5 2 9 Power 5 | 1 2 1 1 Engine 5 | 1 2 1 1 Core . | . . . . Reactor . | . . . . Propulsion 3 | 2 . . 1 Treads . | . . . . Leg 2 | 2 . . . Wheel 1 | . . . 1 Hover . | . . . . Flight . | . . . . Utility 5 | 2 1 . 2 Device 2 | 1 1 . . Storage 1 | 1 . . . Processor . | . . . . Hackware . | . . . . Protection 2 | . . . 2 Artifact . | . . . . Weapon 10 | 2 2 1 5 Energy Gun 3 | 1 . . 2 Energy Cannon . | . . . . Ballistic Gun 3 | 1 1 . 1 Ballistic Cannon . | . . . . Launcher 3 | . 1 1 1 Special Weapon 1 | . . . 1 Impact Weapon . | . . . . Slashing Weapon . | . . . . Piercing Weapon . | . . . . Special Melee Weapon . | . . . . Unidentified Prototypes . | . . . . Parts Lost 10 | . 2 . 8 Power 2 | . 1 . 1 Propulsion 3 | . . . 3 Utility 2 | . 1 . 1 Weapon 3 | . . . 3 Highest Loss Streak 2 | . 1 . 2 To Critical Strikes . | . . . . Average Backups 6 | 2 7 8 6 Power 1 | . 2 2 1 Propulsion . | 1 1 1 . Utility 1 | . 2 2 2 Weapon 2 | . 2 3 2 Tool/Special . | . . . . Unused Backups 6 | . 1 . 5 Power 1 | . . . 1 Propulsion 1 | . 1 . . Utility 3 | . . . 3 Weapon 1 | . . . 1 Tool/Special . | . . . . Average Slot Usage (%) 82 | . 98 100 78 Engine 13 | . 13 14 13 Leg 10 | . 28 28 6 Device 5 | . 14 14 3 Storage 14 | . 14 14 14 Protection 8 | . . . 10 Energy Gun 6 | . 14 . 6 Ballistic Gun 4 | . 7 14 2 Launcher 16 | . 5 13 18 Peak Build Rating 15 | 8 9 10 15 Average Rating 10 | 5 8 9 10 On Entrance 6 | . 8 9 10 Avg Prop Armor Cover (%) 2 | . . . 2 Naked Turns . | . . . . Heaviest Build 22 | 13 14 16 22 Greatest Support 20 | 20 20 20 20 Greatest Overweight (x) 7 | . . . 7 Average Overweight (x) 2 | . . . 3 Largest Inventory Capacity 8 | 8 8 8 8 Average Capacity 7 | 7 8 8 8 Most Carried 8 | 8 8 8 8 Average Carried 6 | 3 7 8 6 Final Capacity 8 | 8 8 8 8 Final Carried 8 | 8 8 8 6 Class Distribution -------------------- 100% | Mutant Dominant Class ---------------- Mutant | -10/Materials Mutant | -10/Mines Mutant | -10/Subcaves Resources | -11 -10 -10 -10 ----------- Run | Yrd Mat Min Sub Matter Collected 1016 | 306 65 75 570 Remotely . | . . . . Salvage Created 618 | 130 236 27 225 Parts 61 | 14 19 8 20 Haulers Intercepted . | . . . . Recyclers Shooed 2 | . 2 . . Parts Field Recycled . | . . . . Retrieved Matter . | . . . . Parts Self-Destructed . | . . . . Prevented . | . . . . Parts Restored . | . . . . Kills | -11 -10 -10 -10 ------- Run | Yrd Mat Min Sub Combat Hostiles Destroyed 21 | . 8 3 10 Guns 1 | . 1 . . AOE 20 | . 7 3 10 Classes Destroyed 7 | 3 3 . 1 Worker 1 | 1 . . . Tunneler 4 | 3 . 1 . Recycler 2 | 1 1 . . Watcher 2 | . 2 . . Swarmer 6 | . 3 3 . Grunt 5 | . 5 . . Subdweller 10 | . . . 10 Best Kill Streak 7 | 3 7 3 2 Combat Bots Only 5 | . 5 3 2 Max Kills in Single Turn 2 | 1 2 2 2 Gunslinging . | . . . . Exploded 2 | . 2 2 2 Melee . | . . . . Uniques/NPCs Destroyed . | . . . . Combat | -11 -10 -10 -10 -------- Run | Yrd Mat Min Sub Hostile Shots Fired 57 | . 24 5 28 Missed 15 | . 7 2 6 Hits 42 | . 17 3 22 Projectile 42 | . 17 3 22 AOE 1 | . . . 1 Critical Strikes 1 | . . . 1 Damage Taken 1095 | . 253 47 795 Core 252 | . 81 26 145 Absorbed by Shields . | . . . . Ignored by Resistances 11 | . . . 11 Regen/Repaired (Parts) 45 | . 45 . . Core Remaining (%) 100 | 100 . . . Volleys Fired 79 | 12 22 5 40 Largest 2 | 2 2 2 2 Hottest 100 | 70 80 53 100 Shots Fired 127 | 24 37 8 58 Gun 74 | 24 29 5 16 Cannon . | . . . . Launcher 50 | . 8 3 39 Special 3 | . . . 3 Kinetic 38 | 12 7 5 14 Thermal 37 | 12 22 . 3 Explosive 50 | . 8 3 39 Electromagnetic 2 | . . . 2 Robot Hit Streak 11 | 2 5 3 11 Robot Miss Streak 2 | 2 2 2 2 Penetration Max . | . . . . Secondary Targets . | . . . . Shots Hit Robots 64 | 11 22 5 26 Core Hits 47 | 6 18 5 18 Critical Kills . | . . . . Critical Parts Destroyed 1 | . 1 . . Critical Strikes 2 | . 2 . . Burn 1 | . 1 . . Destroy 1 | . 1 . . Melee Attacks . | . . . . Impact . | . . . . Slashing . | . . . . Piercing . | . . . . Sneak Attacks . | . . . . Combat Hostiles . | . . . . Follow-up Attacks . | . . . . Damage Inflicted 2138 | 148 651 217 1122 Guns 530 | 148 165 20 197 Cannons . | . . . . Explosions 1608 | . 486 197 925 Melee . | . . . . Ramming . | . . . . Kinetic 330 | 86 27 20 197 Thermal 200 | 62 138 . . Explosive 1608 | . 486 197 925 Electromagnetic . | . . . . Impact . | . . . . Slashing . | . . . . Piercing . | . . . . Highest Corruption . | . . . . Average Corruption . | . . . . Corruption Purged . | . . . . Corruption Blocked . | . . . . Overload Shots . | . . . . Overflow Damage 9 | . 2 . 7 Projectiles . | . . . . Explosions 9 | . 2 . 7 Melee . | . . . . Knockbacks . | . . . . Impact . | . . . . Kinetic . | . . . . Secondary . | . . . . Self-Inflicted Damage 302 | . 84 22 196 Shots 15 | . 4 1 10 Rammed . | . . . . Targets Rammed . | . . . . Kicked . | . . . . Crushed . | . . . . Highest Temperature 252 | 27 64 12 252 Average Temperature 30 | 13 26 9 143 Received Heat Transfer 347 | . 66 . 281 Siege Activations . | . . . . Martial Activations . | . . . . Shielding Activations . | . . . . Robots Disrupted . | . . . . Combat Hostiles . | . . . . Robots Corrupted . | . . . . Combat Hostiles . | . . . . Parts Fried . | . . . . Impact Corruptions . | . . . . Robots Melted . | . . . . Combat Hostiles . | . . . . Parts Melted 1 | . 1 . . Heat Transferred 666 | 185 481 . . Parts Sabotaged . | . . . . Parts Stolen . | . . . . Parts Stripped . | . . . . Power Chain Reactions . | . . . . Alert | -11 -10 -10 -10 ------- Run | Yrd Mat Min Sub Maximum Alert Level . | . . . . Low Security (%) 100 | 100 100 100 . Level 1 . | . . . . Level 2 . | . . . . Level 3 . | . . . . Level 4 . | . . . . Level 5 . | . . . . High Security . | . . . . Max Security . | . . . . Peak Influence 178 | 5 178 92 . Initial 8 | . . 8 . Average 43 | . 85 16 . Influence Increases 398 | 25 276 97 . Destroy 0b10 Robot/C 220 | . 160 60 . Destroy 0b10 Robot/NC 45 | 25 15 5 . Destroy Leader 54 | . 44 10 . Successful Hack 20 | . 20 . . Destroy Structure 59 | . 37 22 . Influence Decreases 398 | 25 254 119 . Entered New Map 14 | . . 14 . Time Decay 364 | 25 234 105 . Lost Part 20 | . 20 . . Squads Dispatched 3 | . 3 . . Investigation 1 | . 1 . . Extermination . | . . . . Reinforcement 2 | . 2 . . Assault . | . . . . Garrison . | . . . . Intercept . | . . . . Searches Triggered . | . . . . Construction Impeded . | . . . . Haulers Reinforced . | . . . . Active Scanning Responses . | . . . . Cargo Convoy Interrupts . | . . . . Stealth | -11 -10 -10 -10 --------- Run | Yrd Mat Min Sub Distress Signals . | . . . . Communications Jammed . | . . . . Distress Signals . | . . . . Times Spotted 31 | . 16 3 12 Peak Tracking Total 3 | . 3 1 2 Tactical Retreats . | . . . . Traps | -11 -10 -10 -10 ------- Run | Yrd Mat Min Sub Traps Triggered 3 | . 1 . 2 Indirectly . | . . . . Trap Hack Attempts . | . . . . Triggered . | . . . . Disarmed . | . . . . Reprogrammed . | . . . . Reused . | . . . . Traps Extracted . | . . . . Installed . | . . . . Triggered . | . . . . Machines | -11 -10 -10 -10 ---------- Run | Yrd Mat Min Sub Machines Disabled . | . . . . Max in Single Turn . | . . . . Machines Repaired . | . . . . Machines Dismantled . | . . . . Machines Sabotaged . | . . . . Overloaded Fab Kills . | . . . . Hacking | -11 -10 -10 -10 --------- Run | Yrd Mat Min Sub Machines Accessed 7 | . 7 . . Terminals 6 | . 6 . . Fabricators . | . . . . Repair Stations 1 | . 1 . . Recycling Units . | . . . . Scanalyzers . | . . . . Garrison Access . | . . . . Total Hacks 16 | . 16 . . Successful 5 | . 5 . . Failed 11 | . 11 . . Catastrophic 2 | . 2 . . Database Lockouts . | . . . . Manual 12 | . 12 . . Terminals 13 | . 13 . . Fabricators . | . . . . Repair Stations 3 | . 3 . . Recycling Units . | . . . . Scanalyzers . | . . . . Garrison Access . | . . . . Terminal Hacks 1 | . 1 . . Branch Access Points 1 | . 1 . . Fabricator Hacks . | . . . . Repair Station Hacks 2 | . 2 . . Scan Component 1 | . 1 . . Repair 1 | . 1 . . Recycling Unit Hacks . | . . . . Scanalyzer . | . . . . Garrison Access Hacks . | . . . . Unauthorized Hacks 2 | . 2 . . Terminals 2 | . 2 . . Assimilate 2 | . 2 . . Fabricators . | . . . . Repair Stations . | . . . . Recycling Units . | . . . . Scanalyzers . | . . . . Garrison Access . | . . . . Data Cores Recovered . | . . . . Used . | . . . . Hacking Detections 5 | . 5 . . Full Trace Events 2 | . 2 . . Feedback Events . | . . . . Feedback Blocked . | . . . . Robot Schematics Acquired . | . . . . Robots Built . | . . . . Authchips . | . . . . Time . | . . . . Total Robot Build Rating . | . . . . Part Schematics Acquired . | . . . . Parts Built . | . . . . Authchips . | . . . . Time . | . . . . Total Part Build Rating . | . . . . Part Studies Acquired . | . . . . Parts Repaired 1 | . 1 . . Time 26 | . 26 . . Parts Recycled . | . . . . Recycled Matter . | . . . . Retrieved Matter . | . . . . Retrieved Components . | . . . . Parts Scanalyzed . | . . . . Part Schematics Acquired . | . . . . Parts Damaged . | . . . . Bothacking | -11 -10 -10 -10 ------------ Run | Yrd Mat Min Sub Used RIF Installer . | . . . . Robots Hacked . | . . . . Non-combat . | . . . . Combat . | . . . . Robot Hacks Applied . | . . . . Relay Couplers Released . | . . . . Fabnet Peak Effective % . | . . . . Robots Rewired . | . . . . Allies Hacked . | . . . . Hacks Repelled . | . . . . Allies | -11 -10 -10 -10 -------- Run | Yrd Mat Min Sub Total Allies . | . . . . Largest Group . | . . . . Highest-Rated Group . | . . . . Highest-Rated Ally . | . . . . Total Orders . | . . . . Ally Attacks . | . . . . Total Damage . | . . . . Kills . | . . . . Allies Corrupted . | . . . . Allies Melted . | . . . . Intel | -11 -10 -10 -10 ------- Run | Yrd Mat Min Sub Active Infowar (turns) 2230 | 70 557 576 1027 Terrain 2009 | . 406 576 1027 Seismic 221 | 70 151 . . Robot Analysis Total . | . . . . Derelict Logs Recovered 2 | . . 1 1 Drone Launches . | . . . . Drone Recoveries . | . . . . Exploration | -11 -10 -10 -10 ------------- Run | Yrd Mat Min Sub Turns Passed 5861 | 190 561 576 4534 Spaces Moved 2701 | 117 375 428 1781 Core 879 | 6 . . 873 Treads . | . . . . Legs 1703 | 111 375 428 789 Wheels 119 | . . . 119 Hover . | . . . . Flight . | . . . . Fastest Speed 50 | 50 120 120 115 Average Speed 202 | 116 120 120 245 Slowest Speed 400 | 120 120 120 400 Overloaded Moves . | . . . . Propulsion Burnouts . | . . . . Robots Hopped . | . . . . Potential Cave-ins 3 | . . . 3 Cave-ins Triggered . | . . . . Exploration Rate (%) 59 | 5 66 97 69 Regions Visited 3 Branch Regions 2 Pre-discovered Areas . | . . . . Known Exits Taken 1 | . 1 . . Unknown Exits Taken 2 | 1 . 1 . Scrap Searched 9 | . . 1 8 Spaces Dug 47 | . . . 47 Terrain Destroyed 271 | . 41 27 203 Melee . | . . . . Projectile . | . . . . AOE 271 | . 41 27 203 Terrain Rammed . | . . . . Walls Destroyed . | . . . . Machines Disabled . | . . . . Actions | -11 -10 -10 -10 --------- Run | Yrd Mat Min Sub Total 2944 | 143 448 482 1871 Wait 120 | . 40 48 32 Move 2698 | 116 374 427 1781 Hop . | . . . . Pick Up 13 | 8 2 . 3 Fast Attach 13 | 7 4 . 2 Attach 6 | . 1 . 5 Detach 1 | . . . 1 Swap 11 | . 3 2 6 Drop 3 | . 2 . 1 Fire 79 | 12 22 5 40 Melee . | . . . . Ram . | . . . . Kick . | . . . . Crush . | . . . . Escape Stasis . | . . . . Rewire . | . . . . Trap . | . . . . Miscellaneous . | . . . . Route ------- -11/Scrapyard -10/Materials (discovered 5 exits: [*Mat x2] / *Min x2 / [*Sub]) -10/Mines (discovered 3 exits: [*Mat x2] / [*Sub]) -10/Subcaves (discovered 1 exit: [*Mat]) History --------- Turn | Location | Event 68 | -11/Scrapyard | Discovered new exit (range 15) 191 | -11/Scrapyard | Entered Materials 300 | -10/Materials | Build established: Mutant 385 | -10/Materials | Repaired Grenade Launcher 416 | -10/Materials | Discovered new exit (range 10) 530 | -10/Materials | Identified exit to Mines 555 | -10/Materials | Discovered new exit (range 5) 715 | -10/Materials | Discovered new exit (range 9) 752 | -10/Materials | Entered Mines 764 | -10/Mines | Received a Rocket Launcher from a helpful Derelict 813 | -10/Mines | Discovered new exit (range 10) 916 | -10/Mines | Discovered new exit (range 4) 1183 | -10/Mines | Discovered new exit (range 6) 1328 | -10/Mines | Entered Subcaves 1336 | -10/Subcaves | Shifting Twisted Machinery released Sub. Power Source 1349 | -10/Subcaves | Shifting Twisted Machinery released Hvy. Riot Gun 1676 | -10/Subcaves | Shifting Twisted Machinery released Sub. Machine Gun 2191 | -10/Subcaves | Core integrity fell below 50% 2296 | -10/Subcaves | Ambushed by Subdweller buried in earth 2310 | -10/Subcaves | Core integrity fell below 20% 5560 | -10/Subcaves | Discovered new exit (range 10) 5646 | -10/Subcaves | Learned Materials security intel 5680 | -10/Subcaves | A swath of the cavern ceiling suddenly collapsed 5744 | -10/Subcaves | Shifting Twisted Machinery released Enh. Flamer 5815 | -10/Subcaves | Shifting Twisted Machinery released Mak. Light Armor Plating 5862 | -10/Subcaves | Destroyed by ER-79H(R) with Subdweller Machine Gun Last Messages --------------- 04436_ Critical hit (Meltdown: +260). 04438_ Q5-KFT(R) destroyed. 04441_ The unstable cave ceiling collapses. 04452_ Acquired 25 matter. 04455_ The unstable cave ceiling collapses. 04459_ Subatomizers dissect the Sub. Optics. 04486_ Subatomizers dissect the Sub. Optics, destroying it. 04528_ Acquired 14 matter. 04712_ Triggered Piercing Trap. 04712_ Spikes shoot up from the floor. 04712_ Critical hit (Impale). 05545_ The unstable cave ceiling collapses. 05560_ EXIT=FOUND 05575_ The unstable cave ceiling collapses. 05646_ Acquired derelict log, extracted data. Data stored: Materials security intel. A swath of the cavern ceiling suddenly collapses. Enh. Flamer falls loose from the Twisted Machinery. Mak. Light Armor Plating falls loose from the Twisted Machinery. 05839_ Acquired Mak. Light Armor Plating. Map ----- +----------------------------------------------------+ | ?????????????????????????????????????????????????? | | ?????????????????????????????????????????????????? | | ?????????????????????????????????????????????????? | | ?????????????????????????????????????????????????? | | ?????????????????????????????????????????????????? | | ?????????????????????????????????????????????????? | | ?????????????????????????????????????????????????? | | ?????????????????????????????????????????????????? | | ?????????????????????????????????????????????????? | | ??????????????????????????#?????????????? ?????? | | ???????????????????????### ???????????## ?????? | | ??????????????????????? ???????????# ?????? | | ??????????????????????? ????????????? ?????? | | ??????????????????????? ????????????? ####?? | | ?????????????####?????? ??????????????? ### | | ?????????????? " "???? #??????????????? #####"# | | ??????????????? "??## ##??????????????? #"#"#" | | ????????????????# "#?# #??????????????? ""#"#"? | | ????????????????# " ## #?????????????????#""""#? | | ???????????# ### "" #?????????????????#"" #? | | ????????????# "" #?????????????????# ## | | ?????????????????# #???###???????????# # | | ?????????????????# " ##??## #???????????# | | ???????????????### "###### ########?#### | | ??????????????## ## # ### # | | ??????????????# R @ ## | | ?????????????# ### # # #### # | | ?????????????# ########## ######## ##?### | | ?????????????## #?????#### ##??????# ##??? | | ??????????????#### ??????#"""" #???????# #??? | | ?????????????????# "??????#""""""|??????#### #??? | | ?????????????????# ??????# """" ??????## #??? | | ?????????????????##???????#"""" "##?????# ##?? | | ??????????????????????????#####" "##??????## #?? | | ??????????????????????????????#####???????# #?? | | ??????????????????????????????????????????# ##?? | | ??????????????????????????????????????????# ##?? | | ??????????????????????????????????????????## ##? | | ????????????????????????????????????????#### < ## | | ????????????????????????????????????????# # | | ????????????????????????????????????????# " # | | ????????????????????????????????????????# | | ????????????????????????????????????????# "" "## | | ???????????????????????????????????????### """"#? | | ???????????????????????????????????????# # "###? | | ???????????????????????????????????????## ##?? | | ???????????????????????????????????????# # #?? | | ???????????????????????????????????????# ###? | | ???????????????????????????????????????## #"## | | ???????????????####????????????????????## " # | +----------------------------------------------------+ Best States ------------- Heat Dissipation 25 Energy Generation 10 Energy Capacity 250 Matter Stores 300 Matter Capacity 300 Sight Range 16 Terrain Scan Range 16 Terrain Scan Density 10 Armor Coverage 100 Resistance: KI 10 Evasion (%) 55 Item Schematics ----------------- None Robot Schematics ------------------ None Fabricated ------------ Nothing Repaired ---------- Grenade Launcher | 25% | -10/Materials Studied --------- None Alien Tech Used ----------------- None Achievements -------------- Do Not Disturb Challenges ------------ None Game ------ Seed BombardmentOvertunedClaws Manual? 0 Play Time 00:23:00 Cumulative 28.7 hours Start 2026.04.23 @ 15:54:10 End 2026.04.23 @ 16:14:50 Sessions 1 Manual Loads 0 Difficulty Rogue Special Mode None Game No. 38 Rogue 38 Adventurer 0 Explorer 0 Win Type - Total 0 Types 0/0/0/0/0/0/0/0/0/0 Lore% 17 Gallery% 26 Achievement% 21 Wizard Run 0 Options --------- Layout 1 ASCII 0 Keyboard 1 Movement Numpad Keybinds 0 Fullscreen 0 Font 28/SmallcapsGlow Map View 90x40 Zoom Use 0% Tactical HUD 1 Map Filters NONE Filters NONE Steam 1 RUN: b25375ac-cc55-43b1-bfca-154e28f03203